bitfinex/quotes_BTCUSD_20250225
["timestamp","ask_amount","ask_price","bid_price","bid_amount"]
[1740526032798,0.00103909,89249.0,89239.0,0.00211494]
[1740526032999,0.168085,89241.0,89239.0,0.00211494]
[1740526033157,0.168086,89240.0,89239.0,0.00611494]
[1740526033346,0.168086,89240.0,89239.0,0.00211494]
[1740526033758,0.168086,89240.0,89239.0,0.00711494]
[1740526034349,0.168086,89240.0,89239.0,0.01111494]
[1740526034838,0.18909644,89240.0,89239.0,0.01111494]
[1740526035227,0.19960171,89240.0,89239.0,0.01111494]
[1740526038640,0.49960171,89240.0,89239.0,0.01111494]
[1740526040127,0.49960171,89240.0,89239.0,0.00211494]
[1740526040533,0.50560171,89240.0,89239.0,0.00211494]
[1740526040968,0.49960171,89240.0,89239.0,0.00211494]
[1740526041168,0.50460171,89240.0,89239.0,0.00211494]
[1740526043054,0.69340245,89240.0,89239.0,0.00211494]
[1740526043514,0.69840245,89240.0,89239.0,0.00211494]
[1740526043912,0.69340245,89240.0,89239.0,0.00211494]
[1740526044935,0.73286924,89240.0,89239.0,0.00211494]
[1740526046304,0.72786924,89240.0,89239.0,0.00211494]
[1740526046570,0.73286924,89240.0,89239.0,0.00211494]
[1740526046924,0.72786924,89240.0,89239.0,0.00211494]
[1740526047107,0.7277435,89240.0,89239.0,0.00211494]
[1740526047303,0.7327435,89240.0,89239.0,0.00211494]
[1740526049716,0.76529197,89240.0,89239.0,0.00211494]
[1740526050540,0.73167358,89240.0,89239.0,0.00211494]
[1740526050750,0.48927109,89240.0,89239.0,0.00211494]
[1740526050867,0.65735709,89240.0,89239.0,0.00211494]
[1740526051278,0.65735709,89240.0,89239.0,9.4e-07]
[1740526051956,0.62480862,89240.0,89239.0,9.4e-07]
[1740526059236,0.61980862,89240.0,89239.0,9.4e-07]
[1740526059441,0.62480862,89240.0,89239.0,9.4e-07]
[1740526060022,0.61980862,89240.0,89239.0,9.4e-07]
[1740526060402,0.62380862,89240.0,89239.0,9.4e-07]
[1740526060839,0.45572262,89240.0,89239.0,0.08110094]
[1740526061067,0.62380862,89240.0,89239.0,0.08110094]
[1740526061270,0.62380862,89240.0,89239.0,9.4e-07]
[1740526061624,0.61980862,89240.0,89239.0,9.4e-07]
[1740526062044,0.62180862,89240.0,89239.0,9.4e-07]
[1740526062469,0.61980862,89240.0,89239.0,9.4e-07]
[1740526062942,0.62380862,89240.0,89239.0,9.4e-07]
[1740526063083,0.70089581,89240.0,89239.0,9.4e-07]
[1740526063404,0.61980862,89240.0,89239.0,9.4e-07]
[1740526063619,0.62380862,89240.0,89239.0,9.4e-07]
[1740526064139,0.16811,89227.0,89226.0,0.0016968]
[1740526064467,0.16914909,89227.0,89226.0,0.0016968]
[1740526065308,0.19018618,89227.0,89226.0,0.0026968]
[1740526065521,0.19966563,89227.0,89226.0,0.0026968]
[1740526065693,0.19966563,89227.0,89226.0,0.0036968]
[1740526065893,0.49966563,89227.0,89226.0,0.0036968]
[1740526066260,0.49966563,89227.0,89226.0,8e-07]
[1740526066261,0.74336637,89227.0,89226.0,8e-07]
[1740526066461,0.89130691,89227.0,89226.0,8e-07]
[1740526067365,0.468148,89207.0,89202.0,0.0008488]
[1740526067563,0.66194874,89207.0,89202.0,0.0008488]
[1740526068569,0.67253254,89207.0,89202.0,0.0008488]
[1740526069131,0.69356963,89207.0,89202.0,0.0008488]
[1740526069708,0.7144329,89207.0,89202.0,0.0008488]
[1740526070665,0.7154329,89207.0,89202.0,0.0008488]
[1740526070868,0.7164329,89207.0,89202.0,0.0008488]
[1740526071340,0.7154329,89207.0,89202.0,0.0008488]
[1740526071484,0.7164329,89207.0,89202.0,0.0008488]
[1740526071885,0.7014329,89207.0,89202.0,0.0008488]
[1740526075971,0.51987314,89207.0,89202.0,0.0008488]
[1740526076297,0.68802114,89207.0,89202.0,0.0008488]
[1740526077559,0.73622114,89207.0,89202.0,0.0008488]
[1740526081541,0.68802114,89207.0,89202.0,0.0008488]
[1740526087407,0.72159748,89207.0,89202.0,0.0008488]
[1740526087689,0.72059748,89207.0,89202.0,0.0008488]
[1740526088034,0.72259748,89207.0,89202.0,0.0008488]
[1740526088230,0.72159748,89207.0,89202.0,0.0008488]
[1740526089052,0.71959748,89207.0,89202.0,0.0008488]
[1740526089490,0.72359748,89207.0,89202.0,0.0008488]
[1740526089686,0.72759748,89207.0,89202.0,0.0008488]
[1740526091861,0.72844618,89207.0,89202.0,0.0008488]
[1740526093177,0.45685794,89207.0,89202.0,0.0008488]
[1740526094223,0.4232816,89207.0,89202.0,0.0008488]
[1740526094940,0.4232816,89207.0,89171.0,0.18962431]
[1740526094941,0.1,89193.0,89172.0,0.0751]
[1740526095090,0.168214,89172.0,89171.0,0.1]
[1740526095295,0.36305383,89172.0,89171.0,0.1]
[1740526095518,0.36201474,89172.0,89171.0,0.1102957]
[1740526095754,0.36201474,89172.0,89171.0,0.1]
[1740526096048,0.37253328,89172.0,89171.0,0.1]
[1740526096412,0.40665097,89172.0,89171.0,0.10012501]
[1740526096609,0.42768806,89172.0,89171.0,0.10012501]
[1740526097010,0.43068806,89172.0,89171.0,0.10012501]
[1740526098015,0.39657037,89172.0,89171.0,0.10012501]
[1740526098217,0.39657037,89172.0,89171.0,0.17982501]
[1740526098438,0.39857037,89172.0,89171.0,0.17982501]
[1740526098638,0.39857037,89172.0,89171.0,0.1901664]
[1740526099022,0.39857037,89172.0,89171.0,0.2385664]
[1740526099235,0.38805183,89172.0,89171.0,0.2385664]
[1740526099575,0.19425109,89172.0,89171.0,0.2385664]
[1740526099730,0.2047498,89172.0,89171.0,0.2385664]
[1740526099942,0.2047498,89172.0,89171.0,0.1104664]
[1740526100540,0.2017498,89172.0,89171.0,0.1104664]
[1740526100988,0.2047498,89172.0,89171.0,0.1104664]
[1740526101191,0.2027498,89172.0,89171.0,0.1104664]
[1740526101610,0.2067498,89172.0,89171.0,0.1104664]
[1740526101783,0.2037498,89172.0,89171.0,0.1104664]
[1740526102474,0.2017498,89172.0,89171.0,0.1104664]
[1740526102679,0.2037498,89172.0,89171.0,0.1104664]
[1740526103077,0.2067498,89172.0,89171.0,0.1104664]
[1740526103886,0.224279,89175.0,89171.0,0.1104664]
[1740526104139,0.168214,89172.0,89171.0,0.1113153]
[1740526104360,0.171214,89172.0,89171.0,0.1113153]
[1740526104515,0.173214,89172.0,89171.0,0.1113153]
[1740526104856,0.176214,89172.0,89171.0,0.1113153]
[1740526105001,0.171214,89172.0,89171.0,0.1113153]
[1740526105200,0.173214,89172.0,89171.0,0.1113153]
[1740526105651,0.173214,89172.0,89171.0,0.10097391]
[1740526106919,0.175214,89172.0,89171.0,0.10097391]
[1740526107163,0.002,89172.0,89171.0,0.18287391]
[1740526107306,0.002,89172.0,89171.0,0.22847391]
[1740526107509,0.003,89172.0,89171.0,0.23886117]
[1740526107712,0.005,89172.0,89171.0,0.23886117]
[1740526107911,0.1698888,89184.0,89172.0,0.0819]
[1740526108128,0.168194,89183.0,89172.0,0.0819]
[1740526108361,0.0016978,89184.0,89173.0,0.0093735]
[1740526108562,0.168199,89180.0,89173.0,0.0093735]
[1740526108762,0.0016978,89184.0,89171.0,0.14657391]
[1740526108763,0.168202,89179.0,89171.0,0.14857391]
[1740526108964,0.0016978,89184.0,89172.0,0.01020806]
[1740526109335,0.168194,89183.0,89172.0,0.01020806]
[1740526109530,0.0036978,89184.0,89172.0,0.01020806]
[1740526109733,0.168214,89172.0,89171.0,0.14857391]
[1740526109955,0.168193,89183.0,89171.0,0.14857391]
[1740526110177,0.168186,89187.0,89171.0,0.14657391]
[1740526110358,0.0492,89214.0,89171.0,0.14657391]
[1740526110359,0.00103909,89204.0,89172.0,0.01020806]
[1740526110552,0.002,89183.0,89173.0,0.0456]
[1740526110752,0.224226,89196.0,89174.0,0.16821]
[1740526110894,0.168177,89192.0,89174.0,0.17840628]
[1740526111099,0.224226,89196.0,89174.0,0.01019628]
[1740526111297,0.168179,89191.0,89175.0,0.0801]
[1740526111702,0.168179,89191.0,89173.0,0.213812]
[1740526111703,0.226206,89204.0,89177.0,0.0801]
[1740526111899,0.00103909,89203.0,89179.0,0.224266]
[1740526112128,0.224213,89201.0,89179.0,0.0801]
[1740526112336,0.168163,89199.0,89182.0,0.0801]
[1740526112535,0.00103909,89198.0,89182.0,0.0801]
[1740526112743,0.00103909,89198.0,89184.0,0.0801]
[1740526113213,0.00103909,89198.0,89179.0,0.224265]
[1740526113214,0.16920409,89198.0,89186.0,0.0801]
[1740526113417,0.168163,89199.0,89187.0,0.0101798]
[1740526113719,0.168169,89196.0,89187.0,0.0101798]
[1740526113927,0.168176,89192.0,89186.0,0.0801]
[1740526114127,0.168175,89193.0,89186.0,0.0801]
[1740526114348,0.168172,89195.0,89186.0,0.0801]
[1740526115506,0.168173,89194.0,89186.0,0.0801]
[1740526115981,0.225226,89196.0,89186.0,0.0801]
[1740526116182,0.168172,89195.0,89186.0,0.0801]
[1740526116379,0.224226,89196.0,89186.0,0.0801]
[1740526116607,0.01048825,89194.0,89186.0,0.0801]
[1740526116807,0.03146555,89194.0,89186.0,0.0801]
[1740526117821,0.0209773,89193.0,89186.0,0.0801]
[1740526118237,0.03146555,89193.0,89186.0,0.0801]
[1740526118451,0.03146555,89193.0,89186.0,0.0811]
[1740526119145,0.0209773,89192.0,89186.0,0.0811]
[1740526119760,0.0209773,89192.0,89186.0,0.0801]
[1740526119966,0.01048825,89191.0,89188.0,0.0773]
[1740526120368,0.01048825,89191.0,89189.0,0.01014483]
[1740526120598,0.0209773,89190.0,89189.0,0.01014483]
[1740526121151,0.03146555,89190.0,89189.0,0.01014483]
[1740526121534,0.03146555,89190.0,89189.0,0.01314483]
[1740526121728,0.03146555,89190.0,89189.0,0.01014483]
[1740526122013,0.03146555,89190.0,89188.0,0.0773]
[1740526122515,0.03146555,89190.0,89189.0,0.004]
[1740526122792,0.01048825,89190.0,89189.0,0.004]
[1740526122945,0.01048825,89190.0,89188.0,0.0773]
[1740526123353,0.01048825,89190.0,89189.0,0.01014483]
[1740526123774,0.168169,89196.0,89189.0,0.01014483]
[1740526124185,0.224221,89198.0,89188.0,0.0773]
[1740526124398,0.168174,89194.0,89189.0,0.01714483]
[1740526124613,0.168174,89193.0,89189.0,0.004]
[1740526124838,0.168174,89193.0,89190.0,0.0101436]
[1740526125011,0.168171,89195.0,89190.0,0.0101436]
[1740526125222,0.168169,89196.0,89189.0,0.001]
[1740526125456,0.168171,89195.0,89189.0,0.002]
[1740526125682,0.168171,89195.0,89189.0,0.001]
[1740526126131,0.168171,89195.0,89190.0,0.002]
[1740526126343,0.168172,89194.0,89188.0,0.0773]
[1740526126904,0.168172,89194.0,89189.0,0.002]
[1740526127312,0.168172,89194.0,89188.0,0.0773]
[1740526127709,0.168172,89194.0,89189.0,0.001]
[1740526128327,0.0016976,89203.0,89189.0,0.002]
[1740526128512,0.168171,89195.0,89189.0,0.002]
[1740526129089,0.168172,89194.0,89189.0,0.002]
[1740526129796,0.168172,89194.0,89188.0,0.0773]
[1740526130008,0.16817,89196.0,89189.0,0.003]
[1740526130229,0.0016976,89203.0,89189.0,0.003]
[1740526130670,0.0016976,89203.0,89191.0,0.0768]
[1740526131090,0.0016976,89203.0,89192.0,0.00836332]
[1740526131698,0.168162,89200.0,89192.0,0.00836332]
[1740526131911,0.168163,89199.0,89192.0,0.00836332]
[1740526132113,0.168161,89201.0,89191.0,0.0768]
[1740526132315,0.168165,89198.0,89191.0,0.0768]
[1740526132522,0.168163,89199.0,89191.0,0.0768]
[1740526134006,0.0016976,89203.0,89191.0,0.0768]
[1740526134224,0.168167,89197.0,89191.0,0.0768]
[1740526134443,0.168167,89197.0,89191.0,0.0788]
[1740526134670,0.168167,89197.0,89192.0,0.00836332]
[1740526135283,0.168171,89195.0,89191.0,0.0778]
[1740526135500,0.224224,89197.0,89191.0,0.0778]
[1740526135711,0.0016976,89203.0,89191.0,0.0778]
[1740526135916,0.0016976,89203.0,89202.0,0.295057]
[1740526136358,0.0016976,89203.0,89202.0,0.31793979]
[1740526137293,0.0016976,89203.0,89202.0,0.3180648]
[1740526137988,0.0026976,89203.0,89202.0,0.3180648]
[1740526138644,0.0026976,89203.0,89202.0,0.43881233]
[1740526139795,0.0016976,89203.0,89202.0,0.43181233]
[1740526140219,0.0026976,89203.0,89202.0,0.43881233]
[1740526140750,0.0026976,89203.0,89202.0,0.44581233]
[1740526141102,0.0026976,89203.0,89202.0,0.76391233]
[1740526141460,0.0026976,89203.0,89202.0,0.77091233]
[1740526146418,0.01843781,89225.0,89205.0,0.01454085]
[1740526146649,0.168104,89231.0,89215.0,0.0807]
[1740526146846,0.02097458,89224.0,89216.0,0.00826986]
[1740526147227,0.01048738,89223.0,89216.0,0.00826986]
[1740526147762,0.02097458,89222.0,89216.0,0.00826986]
[1740526148108,0.02097458,89222.0,89218.0,0.168126]
[1740526148516,0.01048738,89221.0,89219.0,0.00826617]
[1740526148723,0.03146196,89221.0,89219.0,0.00826617]
[1740526148920,0.03146196,89221.0,89217.0,0.168128]
[1740526149125,0.03146196,89221.0,89220.0,0.00826494]
[1740526149386,0.03146196,89221.0,89217.0,0.168128]
[1740526149640,0.03146196,89221.0,89220.0,0.00826494]
[1740526149807,0.03146196,89221.0,89216.0,0.003]
[1740526150030,0.03146196,89221.0,89220.0,0.00826494]
[1740526150214,0.01048738,89220.0,89219.0,0.005]
[1740526150571,0.01048738,89220.0,89218.0,0.168125]
[1740526150780,0.01048738,89220.0,89219.0,0.004]
[1740526150979,0.01048738,89220.0,89219.0,0.172125]
[1740526151180,0.01048738,89220.0,89219.0,0.004]
[1740526151559,0.01048738,89220.0,89215.0,0.0807]
[1740526151828,0.01048738,89220.0,89218.0,0.004]
[1740526151979,0.01048738,89220.0,89215.0,0.248831]
[1740526152368,0.0008488,89221.0,89219.0,0.009]
[1740526152988,0.0008488,89221.0,89219.0,0.004]
[1740526153645,0.0008488,89221.0,89215.0,0.0807]
[1740526153820,0.01048822,89220.0,89215.0,0.0807]
[1740526154026,0.01048822,89220.0,89219.0,0.005]
[1740526154874,0.01048822,89220.0,89219.0,0.009]
[1740526155477,0.01048822,89220.0,89219.0,0.304425]
[1740526155679,0.01048822,89220.0,89219.0,0.31896585]
[1740526155859,0.01048822,89220.0,89219.0,0.31396585]
[1740526156981,0.03246855,89220.0,89219.0,0.31296585]
[1740526157189,0.03246855,89220.0,89219.0,0.31996585]
[1740526159384,0.01148822,89220.0,89219.0,0.31996585]
[1740526160373,0.01148822,89220.0,89219.0,0.15184085]
[1740526160580,0.01148822,89220.0,89219.0,0.31996585]
[1740526161961,0.01148822,89220.0,89219.0,0.15184085]
[1740526162099,0.01148822,89220.0,89219.0,0.15866477]
[1740526162493,0.01148822,89220.0,89219.0,0.32678977]
[1740526163031,0.03252258,89220.0,89219.0,0.32678977]
[1740526163605,0.03252258,89220.0,89219.0,0.32848677]
[1740526164203,0.001,89220.0,89219.0,0.32848677]
[1740526164408,0.001,89220.0,89219.0,0.16036177]
[1740526164849,0.001,89220.0,89219.0,0.09892092]
[1740526165256,0.001,89220.0,89219.0,0.02252092]
[1740526167421,0.169123,89220.0,89219.0,0.02252092]
[1740526167777,0.169123,89220.0,89219.0,0.015697]
[1740526168359,0.169123,89220.0,89219.0,0.008697]
[1740526168565,0.168123,89220.0,89219.0,0.001697]
[1740526168771,0.168123,89220.0,89219.0,0.010697]
[1740526168992,0.168123,89220.0,89219.0,0.006697]
[1740526169549,0.168123,89220.0,89219.0,0.001697]
[1740526170849,0.16916209,89220.0,89219.0,0.001697]
[1740526170970,0.21886209,89220.0,89219.0,0.001697]
[1740526172706,0.22186209,89220.0,89219.0,0.001697]
[1740526172905,0.220823,89220.0,89219.0,0.001697]
[1740526173407,0.224158,89223.0,89219.0,0.001697]
[1740526173585,0.18915624,89220.0,89219.0,0.001697]
[1740526173759,0.19019533,89220.0,89219.0,0.001697]
[1740526173967,0.19119533,89220.0,89219.0,0.001697]
[1740526174175,0.20270987,89220.0,89219.0,0.001697]
[1740526175043,0.03354778,89220.0,89219.0,0.001697]
[1740526175414,0.03254778,89220.0,89219.0,0.001697]
[1740526176326,0.20067078,89220.0,89219.0,0.001697]
[1740526176681,0.03254778,89220.0,89219.0,0.001697]
[1740526177324,0.03154778,89220.0,89219.0,0.00734703]
[1740526177531,0.01051454,89220.0,89219.0,0.00834703]
[1740526178644,0.01051454,89220.0,89219.0,0.01234703]
[1740526178944,0.01051454,89220.0,89219.0,0.00734703]
[1740526179106,0.168096,89235.0,89219.0,0.01134703]
[1740526179323,0.168096,89235.0,89219.0,0.01534703]
[1740526179858,0.168096,89235.0,89219.0,0.01134703]
[1740526180102,0.168096,89235.0,89219.0,0.01634703]
[1740526180425,0.168096,89235.0,89219.0,0.00734703]
[1740526180625,0.168096,89235.0,89219.0,0.01134703]
[1740526180861,0.168095,89235.0,89219.0,0.01134703]
[1740526181061,0.168098,89234.0,89219.0,0.00734703]
[1740526181461,0.168094,89236.0,89219.0,0.17547203]
[1740526181645,0.168094,89236.0,89219.0,0.00734703]
[1740526181843,0.168115,89225.0,89219.0,0.00734703]
[1740526182077,0.224125,89236.0,89219.0,0.00734703]
[1740526182283,0.168108,89229.0,89219.0,0.00734703]
[1740526182861,0.2249634,89240.0,89219.0,0.001697]
[1740526183039,0.168103,89231.0,89219.0,0.003697]
[1740526183405,0.168103,89231.0,89220.0,0.00565972]
[1740526183793,0.168106,89230.0,89220.0,0.00565972]
[1740526184223,0.01819349,89232.0,89219.0,0.002697]
[1740526184393,0.168104,89231.0,89219.0,0.002697]
[1740526184596,0.168104,89231.0,89220.0,0.00565972]
[1740526184797,0.168121,89222.0,89220.0,0.00565972]
[1740526184997,0.168121,89221.0,89220.0,0.00565972]
[1740526185652,0.224159,89223.0,89219.0,0.001697]
[1740526185653,0.168123,89220.0,89219.0,0.001697]
[1740526186031,0.224155,89224.0,89220.0,0.001]
[1740526186386,0.224152,89226.0,89220.0,0.001]
[1740526186597,0.168115,89225.0,89220.0,0.001]
[1740526186930,0.01819349,89232.0,89221.0,0.1277]
[1740526187142,0.01051032,89224.0,89221.0,0.1277]
[1740526187378,0.03153141,89224.0,89222.0,0.00601913]
[1740526188202,0.02102109,89223.0,89222.0,0.00601913]
[1740526188399,0.03153141,89223.0,89222.0,0.00601913]
[1740526188806,0.03153141,89223.0,89222.0,0.00801913]
[1740526189385,0.03153141,89223.0,89222.0,0.01001913]
[1740526189981,0.03153141,89223.0,89222.0,0.01301913]
[1740526190165,0.03153141,89223.0,89222.0,0.18113813]
[1740526190377,0.03153141,89223.0,89222.0,0.01301913]
[1740526190634,0.03153141,89223.0,89222.0,0.00901913]
[1740526191002,0.03153141,89223.0,89222.0,0.01101913]
[1740526191235,0.02102109,89223.0,89222.0,0.00901913]
[1740526191439,0.02102109,89223.0,89222.0,0.01101913]
[1740526192079,0.01819349,89232.0,89222.0,0.01101913]
[1740526192321,0.01819349,89232.0,89222.0,0.17913813]
[1740526192806,0.01051646,89231.0,89222.0,0.17913813]
[1740526192981,0.01051646,89231.0,89222.0,0.17613813]
[1740526193303,0.01051646,89231.0,89222.0,0.00801913]
[1740526193713,0.01051646,89231.0,89222.0,0.00601913]
[1740526194052,0.01051646,89230.0,89222.0,0.00601913]
[1740526194708,0.01051646,89230.0,89222.0,0.00801913]
[1740526194909,0.01051646,89230.0,89222.0,0.00601913]
[1740526195124,0.01051646,89230.0,89222.0,0.00958815]
[1740526195336,0.01051646,89230.0,89222.0,0.00801913]
[1740526195465,0.02103588,89229.0,89223.0,0.224157]
[1740526195677,0.02103588,89229.0,89222.0,0.00801913]
[1740526195873,0.02103588,89229.0,89225.0,0.0798]
[1740526196089,0.02103588,89229.0,89228.0,0.293308]
[1740526196330,0.0008485,89232.0,89231.0,0.168103]
[1740526196533,0.0008485,89232.0,89231.0,0.24947173]
[1740526196790,0.0008485,89232.0,89231.0,0.26843738]
[1740526197424,0.0008485,89232.0,89231.0,0.31383738]
[1740526197598,0.0008485,89232.0,89231.0,0.31783738]
[1740526197599,0.00126467,89232.0,89231.0,0.31783738]
[1740526198347,0.01178069,89232.0,89231.0,0.31383738]
[1740526198640,0.01178069,89232.0,89231.0,0.31683738]
[1740526199479,0.01178069,89232.0,89231.0,0.32183738]
[1740526200308,0.01178069,89232.0,89231.0,0.31683738]
[1740526200710,0.01178069,89232.0,89231.0,0.32383738]
[1740526201088,0.00126467,89232.0,89231.0,0.31683738]
[1740526201718,0.00126467,89232.0,89231.0,0.31383738]
[1740526202124,0.00126467,89232.0,89231.0,0.31783738]
[1740526202455,0.00126467,89232.0,89231.0,0.31383738]
[1740526202698,0.00126467,89232.0,89231.0,0.15973438]
[1740526202830,0.00126467,89232.0,89231.0,0.01999353]
[1740526203369,0.00126467,89232.0,89231.0,0.01299353]
[1740526204125,0.00126467,89232.0,89231.0,0.01999353]
[1740526204347,0.0117715,89232.0,89231.0,0.01999353]
[1740526205676,0.0117715,89232.0,89231.0,0.18109653]
[1740526205872,0.0117715,89232.0,89231.0,0.17409653]
[1740526206072,0.0117715,89232.0,89231.0,0.18109653]
[1740526206290,0.0127715,89232.0,89231.0,0.01999353]
[1740526206504,0.0127715,89232.0,89231.0,0.01299353]
[1740526206716,0.0117715,89232.0,89231.0,0.00699353]
[1740526206854,0.0117715,89232.0,89231.0,0.01099353]
[1740526207055,0.0117715,89232.0,89231.0,0.00999353]
[1740526207261,0.0117715,89232.0,89231.0,0.01399353]
[1740526207262,0.00126467,89232.0,89231.0,0.01399353]
[1740526207460,0.00126467,89232.0,89231.0,0.00999353]
[1740526207663,0.00126467,89232.0,89231.0,0.01199353]
[1740526207929,0.02228445,89232.0,89231.0,0.01199353]
[1740526208669,0.02228445,89232.0,89231.0,0.00799353]
[1740526208670,0.19038545,89232.0,89231.0,0.00799353]
[1740526208953,0.02228445,89232.0,89231.0,0.00699353]
[1740526209148,0.19038545,89232.0,89231.0,0.00899353]
[1740526210080,0.2008967,89232.0,89231.0,0.00799353]
[1740526210311,0.18087692,89232.0,89231.0,0.00799353]
[1740526210516,0.17987692,89232.0,89231.0,0.00799353]
[1740526210746,0.17987692,89232.0,89231.0,0.00599353]
[1740526211473,0.16936567,89232.0,89231.0,0.00599353]
[1740526212138,0.17036567,89232.0,89231.0,0.00599353]
[1740526212589,0.17627075,89234.0,89231.0,0.00599353]
[1740526212804,0.168101,89232.0,89231.0,0.00611854]
[1740526214138,0.17860972,89232.0,89231.0,0.00611854]
[1740526214281,0.01050872,89232.0,89231.0,0.17422154]
[1740526214537,0.01050872,89232.0,89231.0,0.22549036]
[1740526214764,0.01050872,89232.0,89231.0,0.23846239]
[1740526215015,0.01050872,89232.0,89231.0,0.31786239]
[1740526215982,0.01050872,89232.0,89231.0,0.32486239]
[1740526216225,0.01050872,89232.0,89231.0,0.31786239]
[1740526216490,0.03151646,89232.0,89231.0,0.31786239]
[1740526216743,0.03151646,89232.0,89231.0,0.32486239]
[1740526216987,0.03251646,89232.0,89231.0,0.34764616]
[1740526217203,0.03251646,89232.0,89231.0,0.35464616]
[1740526217752,0.03251646,89232.0,89231.0,0.34865263]
[1740526218139,0.03151646,89232.0,89231.0,0.34165263]
[1740526218334,0.03251646,89232.0,89231.0,0.33465263]
[1740526218743,0.03251646,89232.0,89231.0,0.34165263]
[1740526218988,0.03151646,89232.0,89231.0,0.33465263]
[1740526219285,0.03251646,89232.0,89231.0,0.34865263]
[1740526219476,0.03251646,89232.0,89231.0,0.34165263]
[1740526219636,0.03151646,89232.0,89231.0,0.33465263]
[1740526219974,0.03251646,89232.0,89231.0,0.34865263]
[1740526220178,0.03251646,89232.0,89231.0,0.34165263]
[1740526220381,0.03251646,89232.0,89231.0,0.34865263]
[1740526221207,0.03151646,89232.0,89231.0,0.34165263]
[1740526221665,0.03251646,89232.0,89231.0,0.34865263]
[1740526222406,0.03251646,89232.0,89231.0,0.35034923]
[1740526222824,0.03251646,89232.0,89231.0,0.46409676]
[1740526222996,0.03251646,89232.0,89231.0,0.78919676]
[1740526223342,0.02200774,89232.0,89231.0,0.78919676]
[1740526224042,0.02200774,89232.0,89231.0,0.77519676]
[1740526224246,0.0008484,89252.0,89239.0,0.244787]
[1740526224439,0.0008484,89252.0,89239.0,0.25932785]
[1740526225485,0.0018484,89240.0,89239.0,0.26632785]
[1740526225686,0.0018484,89240.0,89239.0,0.09824085]
[1740526225882,0.0018484,89240.0,89239.0,0.0837]
[1740526226092,0.02283585,89240.0,89239.0,0.007]
[1740526226304,0.03332957,89240.0,89239.0,0.007]
[1740526226538,0.03332957,89240.0,89239.0,0.014]
[1740526226703,0.03332957,89240.0,89239.0,0.182087]
[1740526227473,0.03332957,89240.0,89239.0,0.014]
[1740526228516,0.03332957,89240.0,89239.0,0.182087]
[1740526228963,0.03332957,89240.0,89239.0,0.1836557]
[1740526229574,0.06690999,89240.0,89239.0,0.1836557]
[1740526229746,0.06690999,89240.0,89239.0,0.182087]
[1740526231761,0.03332957,89240.0,89239.0,0.182087]
[1740526233295,0.03332957,89240.0,89239.0,0.27432785]
[1740526234827,0.03332957,89240.0,89239.0,0.0917]
[1740526235712,0.03332957,89240.0,89239.0,0.259787]
[1740526237522,0.03332957,89240.0,89239.0,0.014]
[1740526239366,0.03332957,89240.0,89239.0,0.182087]
[1740526239780,0.03332957,89240.0,89239.0,0.27902785]
[1740526240473,0.03332957,89240.0,89239.0,0.0964]
[1740526240822,0.03332957,89240.0,89239.0,0.264487]
[1740526241226,0.03332957,89240.0,89239.0,0.0964]
[1740526243860,0.03332957,89240.0,89239.0,0.014]
[1740526244708,0.2249334,89252.0,89239.0,0.014]
[1740526244913,0.224091,89250.0,89239.0,0.014]
[1740526245053,0.0008484,89252.0,89239.0,0.014]
[1740526245258,0.168078,89244.0,89239.0,0.014]
[1740526245475,0.2241,89246.0,89239.0,0.014]
[1740526245652,0.168076,89245.0,89239.0,0.014]
[1740526246003,0.168076,89245.0,89234.0,0.0829966]
[1740526246201,0.168076,89245.0,89239.0,0.008]
[1740526246554,0.2241,89246.0,89234.0,0.0829966]
[1740526246793,0.0008484,89252.0,89234.0,0.0016966]
[1740526246995,0.16808,89244.0,89234.0,0.0016966]
[1740526247199,0.001,89245.0,89239.0,0.006]
[1740526247499,0.001,89245.0,89239.0,0.012]
[1740526247646,0.168066,89251.0,89239.0,0.006]
[1740526247844,0.168065,89251.0,89239.0,0.006]
[1740526248176,0.1689124,89252.0,89239.0,0.006]
[1740526248375,0.0008483,89240.0,89239.0,0.006]
[1740526248601,0.0008483,89240.0,89234.0,0.0036966]
[1740526249203,0.0008483,89240.0,89234.0,0.0016966]
[1740526249563,0.0008483,89240.0,89239.0,0.008]
[1740526249783,0.0008483,89240.0,89239.0,0.003]
[1740526249987,0.0008483,89240.0,89234.0,0.0016966]
[1740526250188,0.0008483,89240.0,89234.0,0.0066966]
[1740526250390,0.0008483,89240.0,89234.0,0.0116966]
[1740526250908,0.03368214,89239.0,89234.0,0.0116966]
[1740526251301,0.03368214,89239.0,89234.0,0.0066966]
[1740526252299,0.03368214,89238.0,89234.0,0.0016966]
[1740526252521,0.03368214,89238.0,89237.0,0.168091]
[1740526252762,0.03368214,89238.0,89237.0,0.243691]
[1740526253673,0.01671059,89256.0,89237.0,0.0756]
[1740526254079,0.168066,89251.0,89237.0,0.0756]
[1740526254238,0.01671059,89256.0,89237.0,0.0856]
[1740526254239,0.168067,89250.0,89237.0,0.0856]
[1740526254447,0.168065,89251.0,89237.0,0.0856]
[1740526254853,0.168067,89250.0,89237.0,0.0856]
[1740526255194,0.168066,89251.0,89237.0,0.0856]
[1740526255634,0.224077,89255.0,89237.0,0.248691]
[1740526256217,0.01871059,89256.0,89237.0,0.0756]
[1740526256367,0.01671059,89256.0,89237.0,0.0756]
[1740526256578,0.18476759,89256.0,89239.0,0.168086]
[1740526256776,0.01671059,89256.0,89240.0,0.168086]
[1740526256980,0.18476759,89256.0,89239.0,0.168087]
[1740526257175,0.001,89255.0,89237.0,0.0756]
[1740526257404,0.001,89255.0,89253.0,0.16806]
[1740526257602,0.0028482,89256.0,89251.0,0.168064]
[1740526257779,0.0038482,89256.0,89252.0,0.0752]
[1740526258183,0.02105311,89254.0,89252.0,0.0752]
[1740526259360,0.01052436,89255.0,89252.0,0.0752]
[1740526259859,0.01052436,89253.0,89252.0,0.0752]
[1740526260444,0.01052436,89253.0,89252.0,0.0782]
[1740526260772,0.01052436,89253.0,89252.0,0.0812]
[1740526261306,0.01052436,89253.0,89252.0,0.0852]
[1740526262714,0.01052436,89253.0,89252.0,0.0822]
[1740526262924,0.17858536,89253.0,89252.0,0.007]
[1740526263140,0.49924429,89253.0,89252.0,0.007]
[1740526263335,0.69200594,89253.0,89252.0,0.007]
[1740526263540,0.69200594,89253.0,89252.0,0.011]
[1740526264039,0.168086,89240.0,89239.0,0.0016962]
[1740526266082,0.16912509,89240.0,89239.0,0.0016962]
[1740526266303,0.168086,89240.0,89239.0,0.0016962]
[1740526266636,0.168086,89240.0,89239.0,0.0036962]
[1740526267255,0.168086,89240.0,89239.0,0.0016962]